[Event "*** SCC Grand Prix: Titled Tuesday Blitz"]
[Site "Chess.com"]
[Date "2020.07.21"]
[Round "10"]
[White "tan275"]
[Black "dodorox"]
[Result "0-1"]
[WhiteElo "2241"]
[BlackElo "2161"]
[TimeControl "180+1"]
[EndTime "11:59:31 PDT"]
[Termination "dodorox won by checkmate"]

1. d4 {[%clk 0:03:00.9]} 1... Nf6 {[%clk 0:02:59.4]} 2. c4 {[%clk 0:03:01.3]}
2... e6 {[%clk 0:02:59.8]} 3. g3 {[%clk 0:03:00.6]} 3... d5 {[%clk 0:02:57.4]}
4. Nf3 {[%clk 0:03:00.8]} 4... Be7 {[%clk 0:02:52.3]} 5. Bg2 {[%clk 0:03:00.5]}
5... O-O {[%clk 0:02:52.4]} 6. O-O {[%clk 0:02:59.8]} 6... b6 {[%clk 0:02:46.5]}
7. cxd5 {[%clk 0:02:58.8]} 7... exd5 {[%clk 0:02:46.1]} 8. Nc3 {[%clk
0:02:58.1]} 8... Bb7 {[%clk 0:02:44.7]} 9. Bf4 {[%clk 0:02:56.2]} 9... a6 {[%clk
0:02:42.8]} 10. Rc1 {[%clk 0:02:52.8]} 10... Re8 {[%clk 0:02:36.1]} 11. Ne5
{[%clk 0:02:48.2]} 11... c5 {[%clk 0:02:18.8]} 12. dxc5 {[%clk 0:02:40.6]} 12...
bxc5 {[%clk 0:02:11]} 13. Qb3 {[%clk 0:02:28]} 13... Ra7 {[%clk 0:01:45.4]} 14.
Rfd1 {[%clk 0:02:15.5]} 14... c4 {[%clk 0:01:20.6]} 15. Qc2 {[%clk 0:01:50.4]}
15... Qa5 {[%clk 0:01:12.3]} 16. Be3 {[%clk 0:01:41.4]} 16... Bc5 {[%clk
0:01:03.8]} 17. Bxc5 {[%clk 0:01:25.1]} 17... Qxc5 {[%clk 0:01:04.7]} 18. Na4
{[%clk 0:01:22.5]} 18... Qa5 {[%clk 0:00:56.4]} 19. f4 {[%clk 0:01:08.2]} 19...
Nc6 {[%clk 0:00:31.9]} 20. Nxc6 {[%clk 0:00:21.8]} 20... Bxc6 {[%clk 0:00:32.3]}
21. b3 {[%clk 0:00:22.3]} 21... Bxa4 {[%clk 0:00:22.4]} 22. bxa4 {[%clk
0:00:20.2]} 22... Rae7 {[%clk 0:00:22.6]} 23. h3 {[%clk 0:00:14.8]} 23... Rxe2
{[%clk 0:00:21.2]} 24. Qc3 {[%clk 0:00:12.8]} 24... Qc5+ {[%clk 0:00:16.7]} 25.
Kh2 {[%clk 0:00:12.4]} 25... Qf2 {[%clk 0:00:14.8]} 26. Rg1 {[%clk 0:00:12.2]}
26... Ne4 {[%clk 0:00:10.9]} 27. Qb4 {[%clk 0:00:09.1]} 27... Qxg3+ {[%clk
0:00:08.9]} 28. Kh1 {[%clk 0:00:08.7]} 28... Nf2# {[%clk 0:00:09.7]} 0-1

[Event "*** SCC Grand Prix: Titled Tuesday Blitz"]
[Site "Chess.com"]
[Date "2020.07.21"]
[Round "10"]
[White "Vision_64"]
[Black "harkerchess"]
[Result "0-1"]
[WhiteElo "2202"]
[BlackElo "2122"]
[TimeControl "180+1"]
[EndTime "11:59:32 PDT"]
[Termination "harkerchess won by checkmate"]

1. e4 {[%clk 0:02:57.9]} 1... e5 {[%clk 0:02:59.6]} 2. Nf3 {[%clk 0:02:56.9]}
2... Nc6 {[%clk 0:02:57.6]} 3. Bc4 {[%clk 0:02:56.6]} 3... Bc5 {[%clk
0:02:57.3]} 4. b4 {[%clk 0:02:56]} 4... Bxb4 {[%clk 0:02:56.2]} 5. c3 {[%clk
0:02:55.9]} 5... Ba5 {[%clk 0:02:56.8]} 6. d4 {[%clk 0:02:55.6]} 6... exd4
{[%clk 0:02:57.7]} 7. Qb3 {[%clk 0:02:55.3]} 7... Qf6 {[%clk 0:02:56.8]} 8. O-O
{[%clk 0:02:52.5]} 8... dxc3 {[%clk 0:02:56.7]} 9. e5 {[%clk 0:02:50]} 9... Qg6
{[%clk 0:02:56.1]} 10. Nxc3 {[%clk 0:02:46.4]} 10... Bxc3 {[%clk 0:02:53.8]} 11.
Qxc3 {[%clk 0:02:45.1]} 11... Nge7 {[%clk 0:02:51.3]} 12. Ba3 {[%clk 0:01:51.3]}
12... O-O {[%clk 0:02:48.1]} 13. Bb5 {[%clk 0:01:43.1]} 13... Re8 {[%clk
0:02:18.6]} 14. Rad1 {[%clk 0:01:38.6]} 14... a6 {[%clk 0:02:15.8]} 15. Bc4
{[%clk 0:01:28.7]} 15... b5 {[%clk 0:02:07]} 16. Bb3 {[%clk 0:01:27.8]} 16...
Bb7 {[%clk 0:02:03.3]} 17. Nh4 {[%clk 0:01:03]} 17... Qg5 {[%clk 0:01:57.1]} 18.
Nf3 {[%clk 0:00:52]} 18... Qf5 {[%clk 0:01:34.7]} 19. Bc2 {[%clk 0:00:44]} 19...
Qh5 {[%clk 0:01:15.5]} 20. Rxd7 {[%clk 0:00:39.6]} 20... b4 {[%clk 0:01:09.3]}
21. Bxb4 {[%clk 0:00:37.3]} 21... Nxb4 {[%clk 0:01:10.2]} 22. Qxb4 {[%clk
0:00:36.5]} 22... Bxf3 {[%clk 0:01:06]} 23. gxf3 {[%clk 0:00:33.4]} 23... Nc6
{[%clk 0:00:53.4]} 24. Qg4 {[%clk 0:00:23.3]} 24... Qxg4+ {[%clk 0:00:32.6]} 25.
fxg4 {[%clk 0:00:24.2]} 25... Nxe5 {[%clk 0:00:32.7]} 26. Rxc7 {[%clk
0:00:22.8]} 26... Nxg4 {[%clk 0:00:31.9]} 27. Bb3 {[%clk 0:00:21.2]} 27... Nh6
{[%clk 0:00:27.9]} 28. Rd1 {[%clk 0:00:20.2]} 28... Rad8 {[%clk 0:00:26]} 29.
Rdc1 {[%clk 0:00:18.9]} 29... g6 {[%clk 0:00:19.8]} 30. Ra7 {[%clk 0:00:18.4]}
30... Rd6 {[%clk 0:00:16.7]} 31. Rcc7 {[%clk 0:00:18]} 31... Rf6 {[%clk
0:00:16.5]} 32. Kg2 {[%clk 0:00:17.4]} 32... Kg7 {[%clk 0:00:14.8]} 33. Ba4
{[%clk 0:00:17.3]} 33... Re2 {[%clk 0:00:14.4]} 34. Bb3 {[%clk 0:00:17.1]} 34...
Rexf2+ {[%clk 0:00:14.3]} 35. Kg3 {[%clk 0:00:16.5]} 35... R6f3+ {[%clk
0:00:13.1]} 36. Kh4 {[%clk 0:00:16.8]} 36... Rxh2+ {[%clk 0:00:12.8]} 37. Kg5
{[%clk 0:00:17.3]} 37... Rh5# {[%clk 0:00:12.9]} 0-1

[Event "*** SCC Grand Prix: Titled Tuesday Blitz"]
[Site "Chess.com"]
[Date "2020.07.21"]
[Round "10"]
[White "mfwagnerpeixoto"]
[Black "manmanlai1"]
[Result "1-0"]
[WhiteElo "2285"]
[BlackElo "2460"]
[TimeControl "180+1"]
[EndTime "11:59:33 PDT"]
[Termination "mfwagnerpeixoto won by resignation"]

1. e4 {[%clk 0:03:00.9]} 1... c5 {[%clk 0:02:58.8]} 2. Nf3 {[%clk 0:02:56.6]}
2... e6 {[%clk 0:02:59.2]} 3. d3 {[%clk 0:02:55.8]} 3... Nc6 {[%clk 0:02:52.1]}
4. Nbd2 {[%clk 0:02:51.8]} 4... g6 {[%clk 0:02:52.2]} 5. g3 {[%clk 0:02:51.5]}
5... Bg7 {[%clk 0:02:52.6]} 6. Bg2 {[%clk 0:02:49.9]} 6... Nge7 {[%clk
0:02:51.6]} 7. O-O {[%clk 0:02:50.8]} 7... d6 {[%clk 0:02:51.8]} 8. c3 {[%clk
0:02:49.6]} 8... Rb8 {[%clk 0:02:49.4]} 9. a4 {[%clk 0:02:46.4]} 9... a6 {[%clk
0:02:48.8]} 10. Re1 {[%clk 0:02:44.1]} 10... O-O {[%clk 0:02:48.8]} 11. h4
{[%clk 0:02:38.7]} 11... b5 {[%clk 0:02:45.4]} 12. axb5 {[%clk 0:02:34.7]} 12...
axb5 {[%clk 0:02:46.3]} 13. Nf1 {[%clk 0:02:15.3]} 13... b4 {[%clk 0:02:44.4]}
14. Bd2 {[%clk 0:02:14.5]} 14... Bb7 {[%clk 0:02:41.1]} 15. h5 {[%clk
0:02:10.1]} 15... Qb6 {[%clk 0:02:37.3]} 16. Ne3 {[%clk 0:02:06.8]} 16... Ra8
{[%clk 0:02:35.3]} 17. Nc4 {[%clk 0:02:05]} 17... Qc7 {[%clk 0:02:34.7]} 18.
Rxa8 {[%clk 0:02:01.5]} 18... Rxa8 {[%clk 0:02:33.4]} 19. hxg6 {[%clk
0:01:56.9]} 19... hxg6 {[%clk 0:02:33]} 20. Ng5 {[%clk 0:01:52]} 20... Ne5
{[%clk 0:02:10]} 21. Nxe5 {[%clk 0:01:48.8]} 21... Bxe5 {[%clk 0:02:09.4]} 22.
Qg4 {[%clk 0:01:36.4]} 22... Bg7 {[%clk 0:01:50.5]} 23. Qh4 {[%clk 0:01:26.6]}
23... Kf8 {[%clk 0:01:44.6]} 24. Nh7+ {[%clk 0:01:17.5]} 24... Ke8 {[%clk
0:01:40.8]} 25. Nf6+ {[%clk 0:01:17]} 25... Kd8 {[%clk 0:01:24.5]} 26. Bg5
{[%clk 0:01:10.9]} 26... Kc8 {[%clk 0:01:21.4]} 27. cxb4 {[%clk 0:00:59]} 27...
Bc6 {[%clk 0:01:05.5]} 28. bxc5 {[%clk 0:00:57.3]} 28... dxc5 {[%clk 0:01:06.4]}
29. Rc1 {[%clk 0:00:53.5]} 29... Qb6 {[%clk 0:01:01.5]} 30. Be3 {[%clk
0:00:41.1]} 30... Ra5 {[%clk 0:01:00.5]} 31. Ng4 {[%clk 0:00:28.5]} 31... Kd7
{[%clk 0:00:55.5]} 32. Qh7 {[%clk 0:00:25]} 32... Bxb2 {[%clk 0:00:55.2]} 33.
Qxf7 {[%clk 0:00:16.5]} 33... Bxc1 {[%clk 0:00:48.6]} 34. Ne5+ {[%clk
0:00:16.3]} 34... Kc8 {[%clk 0:00:43.8]} 35. Qxe6+ {[%clk 0:00:09.8]} 35... Kb8
{[%clk 0:00:28.1]} 36. Nd7+ {[%clk 0:00:08.6]} 1-0

[Event "*** SCC Grand Prix: Titled Tuesday Blitz"]
[Site "Chess.com"]
[Date "2020.07.21"]
[Round "10"]
[White "Matols"]
[Black "talaicito"]
[Result "1-0"]
[WhiteElo "2212"]
[BlackElo "2074"]
[TimeControl "180+1"]
[EndTime "11:59:38 PDT"]
[Termination "Matols won on time"]

1. d4 {[%clk 0:03:00.9]} 1... e6 {[%clk 0:02:59.5]} 2. c4 {[%clk 0:03:00.8]}
2... f5 {[%clk 0:02:59.7]} 3. Nf3 {[%clk 0:02:59.1]} 3... Nf6 {[%clk 0:03:00.1]}
4. g3 {[%clk 0:02:59.2]} 4... Be7 {[%clk 0:03:00.7]} 5. Bg2 {[%clk 0:02:59.4]}
5... d6 {[%clk 0:03:01.3]} 6. O-O {[%clk 0:02:59.1]} 6... O-O {[%clk 0:03:01.9]}
7. Nc3 {[%clk 0:02:58.1]} 7... Ne4 {[%clk 0:03:02]} 8. Qc2 {[%clk 0:02:56]} 8...
Nxc3 {[%clk 0:03:01.4]} 9. Qxc3 {[%clk 0:02:55.3]} 9... a5 {[%clk 0:03:01.6]}
10. b3 {[%clk 0:02:53.9]} 10... Nc6 {[%clk 0:03:01]} 11. Bb2 {[%clk 0:02:52.3]}
11... Bf6 {[%clk 0:03:01.5]} 12. e3 {[%clk 0:02:50.7]} 12... e5 {[%clk
0:03:00.7]} 13. Rad1 {[%clk 0:02:46.6]} 13... Qe8 {[%clk 0:02:59.9]} 14. dxe5
{[%clk 0:02:41.4]} 14... dxe5 {[%clk 0:02:59.5]} 15. Qc1 {[%clk 0:02:37.5]}
15... g5 {[%clk 0:02:38]} 16. Qa1 {[%clk 0:02:29.7]} 16... g4 {[%clk 0:02:28.8]}
17. Nd2 {[%clk 0:02:28.4]} 17... Qe7 {[%clk 0:02:08.1]} 18. f4 {[%clk
0:02:20.4]} 18... e4 {[%clk 0:02:04.6]} 19. Bxf6 {[%clk 0:02:05.7]} 19... Qxf6
{[%clk 0:02:05.5]} 20. Qxf6 {[%clk 0:02:04.8]} 20... Rxf6 {[%clk 0:02:06.1]} 21.
Nb1 {[%clk 0:02:04.7]} 21... Be6 {[%clk 0:01:59.4]} 22. Nc3 {[%clk 0:02:03.8]}
22... Nb4 {[%clk 0:01:58.6]} 23. Rd4 {[%clk 0:01:56.4]} 23... Nc2 {[%clk
0:01:46.5]} 24. Nxe4 {[%clk 0:01:52.6]} 24... fxe4 {[%clk 0:01:43.5]} 25. Rxe4
{[%clk 0:01:51.7]} 25... Bf7 {[%clk 0:01:26]} 26. Rd1 {[%clk 0:01:43.3]} 26...
Re6 {[%clk 0:00:55]} 27. Kf2 {[%clk 0:01:36]} 27... c6 {[%clk 0:00:35.5]} 28.
Rd7 {[%clk 0:01:31.6]} 28... Nb4 {[%clk 0:00:21.9]} 29. Red4 {[%clk 0:00:52.4]}
29... b6 {[%clk 0:00:14.2]} 30. Rd2 {[%clk 0:00:50.1]} 30... Rae8 {[%clk
0:00:12]} 31. e4 {[%clk 0:00:42.6]} 31... h5 {[%clk 0:00:10.9]} 32. e5 {[%clk
0:00:41.9]} 32... Bg6 {[%clk 0:00:09.1]} 33. a3 {[%clk 0:00:40.1]} 33... Na6
{[%clk 0:00:05.3]} 34. Rb7 {[%clk 0:00:36.2]} 34... Nc5 {[%clk 0:00:04.4]} 35.
Rxb6 {[%clk 0:00:33.6]} 35... Be4 {[%clk 0:00:03.3]} 36. b4 {[%clk 0:00:24.7]}
36... axb4 {[%clk 0:00:02.4]} 37. axb4 {[%clk 0:00:24.6]} 1-0

[Event "*** SCC Grand Prix: Titled Tuesday Blitz"]
[Site "Chess.com"]
[Date "2020.07.21"]
[Round "10"]
[White "okriak"]
[Black "Gabix_94"]
[Result "1-0"]
[WhiteElo "2739"]
[BlackElo "2875"]
[TimeControl "180+1"]
[EndTime "11:59:39 PDT"]
[Termination "okriak won by resignation"]

1. Nf3 {[%clk 0:03:00.9]} 1... c5 {[%clk 0:02:58.6]} 2. c4 {[%clk 0:03:00.3]}
2... Nc6 {[%clk 0:02:58.8]} 3. d4 {[%clk 0:02:59.7]} 3... cxd4 {[%clk
0:02:59.7]} 4. Nxd4 {[%clk 0:03:00.1]} 4... Nf6 {[%clk 0:03:00.2]} 5. Nc3 {[%clk
0:02:59.9]} 5... Qb6 {[%clk 0:02:59.9]} 6. Nb3 {[%clk 0:02:58.1]} 6... e6 {[%clk
0:02:58.9]} 7. Be3 {[%clk 0:02:52.4]} 7... Qc7 {[%clk 0:02:57.6]} 8. Nb5 {[%clk
0:02:51.7]} 8... Qb8 {[%clk 0:02:55.1]} 9. g3 {[%clk 0:02:44.8]} 9... a6 {[%clk
0:02:53.5]} 10. Nc3 {[%clk 0:02:44.6]} 10... b5 {[%clk 0:02:50.6]} 11. c5 {[%clk
0:02:40.5]} 11... Bb7 {[%clk 0:02:43.1]} 12. Bg2 {[%clk 0:02:40]} 12... Ne5
{[%clk 0:02:40]} 13. O-O {[%clk 0:02:35]} 13... Bxg2 {[%clk 0:02:38.1]} 14. Kxg2
{[%clk 0:02:35.3]} 14... Qb7+ {[%clk 0:02:33.2]} 15. f3 {[%clk 0:02:35.1]} 15...
Nc4 {[%clk 0:02:33.7]} 16. Qc1 {[%clk 0:02:14.4]} 16... Rc8 {[%clk 0:02:29.9]}
17. Bf2 {[%clk 0:02:12.4]} 17... Be7 {[%clk 0:02:18.8]} 18. a4 {[%clk
0:01:52.4]} 18... O-O {[%clk 0:02:12.5]} 19. axb5 {[%clk 0:01:52.2]} 19... axb5
{[%clk 0:02:13.4]} 20. Na5 {[%clk 0:01:45.5]} 20... Nxa5 {[%clk 0:02:06.6]} 21.
Rxa5 {[%clk 0:01:45]} 21... b4 {[%clk 0:02:02.8]} 22. Rb5 {[%clk 0:01:33.6]}
22... Qa6 {[%clk 0:02:02.4]} 23. Rxb4 {[%clk 0:01:33.3]} 23... Bxc5 {[%clk
0:02:01.4]} 24. Bxc5 {[%clk 0:01:30.6]} 24... Rxc5 {[%clk 0:02:02.3]} 25. Qe3
{[%clk 0:01:27.1]} 25... Rfc8 {[%clk 0:01:58]} 26. Rd1 {[%clk 0:01:18]} 26... h6
{[%clk 0:01:55.2]} 27. Rd2 {[%clk 0:01:12.5]} 27... d5 {[%clk 0:01:51.1]} 28.
Ra4 {[%clk 0:01:05.6]} 28... Qb7 {[%clk 0:01:42.1]} 29. Qd4 {[%clk 0:01:02.5]}
29... Rc4 {[%clk 0:01:33.5]} 30. Rxc4 {[%clk 0:01:01.9]} 30... Rxc4 {[%clk
0:01:34.2]} 31. Qe5 {[%clk 0:00:59.9]} 31... Rb4 {[%clk 0:01:33.5]} 32. Nd1
{[%clk 0:00:58.7]} 32... Qb6 {[%clk 0:01:28.2]} 33. Qe3 {[%clk 0:00:55.4]} 33...
d4 {[%clk 0:01:26.5]} 34. Qe5 {[%clk 0:00:45.6]} 34... Nd5 {[%clk 0:01:26.7]}
35. h4 {[%clk 0:00:41.4]} 35... Kh7 {[%clk 0:01:16.2]} 36. Qe4+ {[%clk 0:00:41]}
36... f5 {[%clk 0:01:15.4]} 37. Qe5 {[%clk 0:00:40.8]} 37... Rc4 {[%clk
0:01:07.2]} 38. Kh2 {[%clk 0:00:36.5]} 38... Nf6 {[%clk 0:01:00.9]} 39. Nf2
{[%clk 0:00:34.6]} 39... Qb4 {[%clk 0:00:58.5]} 40. Rd1 {[%clk 0:00:25.7]} 40...
Qxb2 {[%clk 0:00:54.4]} 41. Qxe6 {[%clk 0:00:25.7]} 41... Rc5 {[%clk 0:00:54.9]}
42. Nd3 {[%clk 0:00:24.8]} 42... Qc3 {[%clk 0:00:40.1]} 43. Rc1 {[%clk
0:00:24.8]} 43... Qxd3 {[%clk 0:00:37.4]} 44. Rxc5 {[%clk 0:00:21.8]} 44... Qd2
{[%clk 0:00:35.5]} 45. Qxf5+ {[%clk 0:00:21.7]} 45... Kh8 {[%clk 0:00:36]} 46.
Rc8+ {[%clk 0:00:21.1]} 46... Ng8 {[%clk 0:00:36.4]} 47. Qe6 {[%clk 0:00:21.7]}
47... Qxe2+ {[%clk 0:00:36.8]} 48. Qxe2 {[%clk 0:00:21.1]} 1-0

[Event "*** SCC Grand Prix: Titled Tuesday Blitz"]
[Site "Chess.com"]
[Date "2020.07.21"]
[Round "10"]
[White "BikingBrian"]
[Black "davigator"]
[Result "0-1"]
[WhiteElo "2214"]
[BlackElo "2341"]
[TimeControl "180+1"]
[EndTime "11:59:40 PDT"]
[Termination "davigator won by resignation"]

1. d4 {[%clk 0:03:00.9]} 1... Nf6 {[%clk 0:02:59.3]} 2. Bg5 {[%clk 0:02:59.4]}
2... e6 {[%clk 0:02:58.9]} 3. Nd2 {[%clk 0:02:58.8]} 3... c5 {[%clk 0:02:58]} 4.
e3 {[%clk 0:02:58.8]} 4... d5 {[%clk 0:02:55.9]} 5. c3 {[%clk 0:02:58]} 5... Qb6
{[%clk 0:02:55.4]} 6. Rb1 {[%clk 0:02:56.7]} 6... Be7 {[%clk 0:02:54.2]} 7. Bd3
{[%clk 0:02:56.7]} 7... Bd7 {[%clk 0:02:42.4]} 8. f4 {[%clk 0:02:56.7]} 8... Bb5
{[%clk 0:02:42.1]} 9. Bc2 {[%clk 0:02:52.7]} 9... Qa6 {[%clk 0:02:39]} 10. a3
{[%clk 0:02:51.3]} 10... Bd3 {[%clk 0:02:37.7]} 11. Ndf3 {[%clk 0:02:31.8]}
11... Bxc2 {[%clk 0:02:36.5]} 12. Qxc2 {[%clk 0:02:31.9]} 12... Nc6 {[%clk
0:02:34.5]} 13. Ne5 {[%clk 0:02:31.5]} 13... Ne4 {[%clk 0:02:29.8]} 14. Bxe7
{[%clk 0:02:28.8]} 14... Nxe7 {[%clk 0:02:29.3]} 15. Qe2 {[%clk 0:02:17.8]}
15... c4 {[%clk 0:02:19.3]} 16. Ngf3 {[%clk 0:02:13.5]} 16... O-O {[%clk
0:02:17.5]} 17. Nd2 {[%clk 0:02:10.3]} 17... Nd6 {[%clk 0:02:15.1]} 18. O-O
{[%clk 0:02:02.6]} 18... Rad8 {[%clk 0:02:12.8]} 19. e4 {[%clk 0:02:02.5]} 19...
f6 {[%clk 0:02:11.6]} 20. Nef3 {[%clk 0:01:58.2]} 20... Nf7 {[%clk 0:02:11]} 21.
e5 {[%clk 0:01:57.6]} 21... f5 {[%clk 0:02:07.2]} 22. Kh1 {[%clk 0:01:50.9]}
22... Kh8 {[%clk 0:02:07.2]} 23. Rg1 {[%clk 0:01:51.2]} 23... Rg8 {[%clk
0:02:07.1]} 24. h3 {[%clk 0:01:51.6]} 24... g5 {[%clk 0:02:04.2]} 25. fxg5
{[%clk 0:01:49]} 25... Nxg5 {[%clk 0:02:04.1]} 26. Nxg5 {[%clk 0:01:49]} 26...
Rxg5 {[%clk 0:02:04.1]} 27. g4 {[%clk 0:01:49.1]} 27... Rdg8 {[%clk 0:01:58.8]}
28. gxf5 {[%clk 0:01:48.7]} 28... Rxg1+ {[%clk 0:01:58.5]} 29. Rxg1 {[%clk
0:01:48.5]} 29... Rxg1+ {[%clk 0:01:59.1]} 30. Kxg1 {[%clk 0:01:49.4]} 30...
Nxf5 {[%clk 0:01:59.3]} 31. Qh5 {[%clk 0:01:43.5]} 31... Qc6 {[%clk 0:01:57.1]}
32. Qf7 {[%clk 0:01:40.9]} 32... Qc8 {[%clk 0:01:54.2]} 33. Qf6+ {[%clk
0:01:36.9]} 33... Ng7 {[%clk 0:01:51.4]} 34. Nf3 {[%clk 0:01:33.1]} 34... Qe8
{[%clk 0:01:51.3]} 35. Ng5 {[%clk 0:01:28.9]} 35... Kg8 {[%clk 0:01:50.6]} 36.
h4 {[%clk 0:01:22.9]} 36... Qf8 {[%clk 0:01:42.1]} 37. Qxf8+ {[%clk 0:01:22.5]}
37... Kxf8 {[%clk 0:01:42.4]} 38. Nxh7+ {[%clk 0:01:23.1]} 38... Kf7 {[%clk
0:01:43.1]} 39. Ng5+ {[%clk 0:01:21]} 39... Kg6 {[%clk 0:01:43.1]} 40. Kg2
{[%clk 0:01:18.1]} 40... Kf5 {[%clk 0:01:43.6]} 41. Kh3 {[%clk 0:01:13.9]} 41...
Nh5 {[%clk 0:01:43.7]} 42. Nf7 {[%clk 0:01:03.9]} 42... Nf4+ {[%clk 0:01:43.4]}
43. Kg3 {[%clk 0:01:03.2]} 43... Nd3 {[%clk 0:01:44]} 44. Nd6+ {[%clk
0:00:44.7]} 44... Kg6 {[%clk 0:01:41.4]} 45. Kg4 {[%clk 0:00:35.1]} 45... Nxb2
{[%clk 0:01:40.9]} 46. h5+ {[%clk 0:00:35.3]} 46... Kh6 {[%clk 0:01:39.4]} 47.
Nf7+ {[%clk 0:00:35]} 47... Kg7 {[%clk 0:01:39.7]} 48. Ng5 {[%clk 0:00:35.3]}
48... Na4 {[%clk 0:01:34.7]} 49. Nxe6+ {[%clk 0:00:35.5]} 49... Kh6 {[%clk
0:01:34.5]} 50. Ng5 {[%clk 0:00:28.9]} 50... Nxc3 {[%clk 0:01:31.3]} 51. e6
{[%clk 0:00:29.2]} 51... Nb5 {[%clk 0:01:31.4]} 52. e7 {[%clk 0:00:26]} 52...
Nc7 {[%clk 0:01:31.4]} 53. Nf7+ {[%clk 0:00:22]} 53... Kg7 {[%clk 0:01:30.7]}
54. Ne5 {[%clk 0:00:21.7]} 54... c3 {[%clk 0:01:26.1]} 55. Kg5 {[%clk
0:00:20.4]} 55... b5 {[%clk 0:01:25.6]} 56. h6+ {[%clk 0:00:20.2]} 56... Kh7
{[%clk 0:01:25.1]} 57. Kf6 {[%clk 0:00:16.9]} 57... a5 {[%clk 0:01:25]} 58. Kf7
{[%clk 0:00:16.7]} 58... b4 {[%clk 0:01:23.8]} 59. axb4 {[%clk 0:00:17.3]} 59...
axb4 {[%clk 0:01:23.8]} 60. e8=Q {[%clk 0:00:09.2]} 60... Nxe8 {[%clk 0:01:23]}
61. Kxe8 {[%clk 0:00:10.1]} 61... b3 {[%clk 0:01:23.3]} 62. Nc6 {[%clk
0:00:06.7]} 62... b2 {[%clk 0:01:22.1]} 63. Ne7 {[%clk 0:00:07.6]} 63... b1=Q
{[%clk 0:01:21.3]} 64. Nxd5 {[%clk 0:00:08.5]} 64... Qe4+ {[%clk 0:01:18.3]} 65.
Ne7 {[%clk 0:00:07.6]} 65... c2 {[%clk 0:01:18.3]} 0-1

[Event "*** SCC Grand Prix: Titled Tuesday Blitz"]
[Site "Chess.com"]
[Date "2020.07.21"]
[Round "10"]
[White "Orest_Vovk"]
[Black "Spartakus1975"]
[Result "0-1"]
[WhiteElo "2395"]
[BlackElo "2628"]
[TimeControl "180+1"]
[EndTime "11:59:42 PDT"]
[Termination "Spartakus1975 won on time"]

1. h4 {[%clk 0:03:00.9]} 1... d5 {[%clk 0:02:17.4]} 2. h5 {[%clk 0:02:59.7]}
2... e5 {[%clk 0:02:16.1]} 3. h6 {[%clk 0:02:59.3]} 3... Nxh6 {[%clk 0:02:15.1]}
4. d4 {[%clk 0:02:59.4]} 4... Ng4 {[%clk 0:02:12]} 5. dxe5 {[%clk 0:02:57.7]}
5... Nxe5 {[%clk 0:02:11.1]} 6. Nf3 {[%clk 0:02:57.9]} 6... Nbc6 {[%clk
0:02:08.8]} 7. Bf4 {[%clk 0:02:52.2]} 7... Ng6 {[%clk 0:02:00.6]} 8. Bg3 {[%clk
0:02:49.5]} 8... Bd6 {[%clk 0:01:56.2]} 9. Bxd6 {[%clk 0:02:42.4]} 9... Qxd6
{[%clk 0:01:55.3]} 10. c3 {[%clk 0:02:42.1]} 10... O-O {[%clk 0:01:51.8]} 11. e3
{[%clk 0:02:37.8]} 11... Bg4 {[%clk 0:01:48.5]} 12. Be2 {[%clk 0:02:35.9]} 12...
h6 {[%clk 0:01:46.4]} 13. Nbd2 {[%clk 0:02:32.7]} 13... Rad8 {[%clk 0:01:44.8]}
14. Qa4 {[%clk 0:02:31.3]} 14... Bd7 {[%clk 0:01:41.8]} 15. O-O-O {[%clk
0:02:18.7]} 15... a6 {[%clk 0:01:37.8]} 16. Ne4 {[%clk 0:02:01.6]} 16... Qe7
{[%clk 0:01:23]} 17. Rxd5 {[%clk 0:01:19.1]} 17... Nce5 {[%clk 0:01:19.6]} 18.
Qc2 {[%clk 0:01:02.6]} 18... Bc6 {[%clk 0:01:14.8]} 19. Rxd8 {[%clk 0:01:00]}
19... Rxd8 {[%clk 0:01:14.4]} 20. Ng3 {[%clk 0:00:43.7]} 20... Nxf3 {[%clk
0:01:03]} 21. gxf3 {[%clk 0:00:43.4]} 21... Qe6 {[%clk 0:01:01]} 22. b3 {[%clk
0:00:38.6]} 22... Ne5 {[%clk 0:00:59]} 23. e4 {[%clk 0:00:32.3]} 23... Ng6
{[%clk 0:00:52.8]} 24. Bc4 {[%clk 0:00:22.7]} 24... Qe5 {[%clk 0:00:47.1]} 25.
Nf5 {[%clk 0:00:21.9]} 25... b5 {[%clk 0:00:46]} 26. Be2 {[%clk 0:00:16.5]}
26... Qf4+ {[%clk 0:00:45.3]} 27. Ne3 {[%clk 0:00:11.4]} 27... Ne5 {[%clk
0:00:44.4]} 28. Rd1 {[%clk 0:00:07.2]} 28... Re8 {[%clk 0:00:37.5]} 29. Kb2
{[%clk 0:00:01.5]} 29... Nxf3 {[%clk 0:00:37.3]} 30. Bxf3 {[%clk 0:00:01.9]}
30... Qxf3 {[%clk 0:00:36.8]} 31. Nd5 {[%clk 0:00:01.4]} 31... Qxe4 {[%clk
0:00:17.8]} 32. Rd2 {[%clk 0:00:01.3]} 32... Bxd5 {[%clk 0:00:16.6]} 0-1

[Event "*** SCC Grand Prix: Titled Tuesday Blitz"]
[Site "Chess.com"]
[Date "2020.07.21"]
[Round "10"]
[White "MarceloPlaya"]
[Black "j2806"]
[Result "1-0"]
[WhiteElo "2269"]
[BlackElo "2043"]
[TimeControl "180+1"]
[EndTime "11:59:43 PDT"]
[Termination "MarceloPlaya won by resignation"]

1. e4 {[%clk 0:03:00.9]} 1... c5 {[%clk 0:02:57.6]} 2. Nf3 {[%clk 0:02:59.9]}
2... d6 {[%clk 0:02:56.7]} 3. d4 {[%clk 0:02:58.9]} 3... cxd4 {[%clk 0:02:56.8]}
4. Nxd4 {[%clk 0:02:56.8]} 4... Nf6 {[%clk 0:02:57.1]} 5. Nc3 {[%clk 0:02:56.6]}
5... a6 {[%clk 0:02:56.2]} 6. Bg5 {[%clk 0:02:56.2]} 6... e6 {[%clk 0:02:55.8]}
7. f4 {[%clk 0:02:55.7]} 7... Be7 {[%clk 0:02:56.1]} 8. Qf3 {[%clk 0:02:55.4]}
8... Qc7 {[%clk 0:02:56.3]} 9. O-O-O {[%clk 0:02:55]} 9... Nbd7 {[%clk
0:02:56.2]} 10. g4 {[%clk 0:02:53.9]} 10... b5 {[%clk 0:02:56.1]} 11. Bxf6
{[%clk 0:02:53]} 11... Nxf6 {[%clk 0:02:55.9]} 12. g5 {[%clk 0:02:53.3]} 12...
Nd7 {[%clk 0:02:56]} 13. f5 {[%clk 0:02:53.5]} 13... e5 {[%clk 0:02:51.7]} 14.
Nde2 {[%clk 0:02:48.5]} 14... f6 {[%clk 0:02:47.7]} 15. Nd5 {[%clk 0:02:45.9]}
15... Qd8 {[%clk 0:02:42.6]} 16. Qh5+ {[%clk 0:02:44.5]} 16... Kf8 {[%clk
0:02:38]} 17. h4 {[%clk 0:02:32.4]} 17... Nb6 {[%clk 0:02:19.3]} 18. Nxe7 {[%clk
0:02:26.2]} 18... Qxe7 {[%clk 0:02:18.4]} 19. Ng3 {[%clk 0:02:08.1]} 19... Bb7
{[%clk 0:02:10.7]} 20. Rh2 {[%clk 0:02:07.3]} 20... Rc8 {[%clk 0:02:09.5]} 21.
Rhd2 {[%clk 0:02:05.4]} 21... Rd8 {[%clk 0:02:01.1]} 22. Qg4 {[%clk 0:01:56.3]}
22... d5 {[%clk 0:01:52.1]} 23. exd5 {[%clk 0:01:55.3]} 23... Rxd5 {[%clk
0:01:48.8]} 24. Rxd5 {[%clk 0:01:52.3]} 24... Nxd5 {[%clk 0:01:48.2]} 25. Rd3
{[%clk 0:01:20.4]} 25... Kf7 {[%clk 0:01:31.3]} 26. g6+ {[%clk 0:01:16.6]} 26...
hxg6 {[%clk 0:01:25]} 27. fxg6+ {[%clk 0:01:15.8]} 27... Kf8 {[%clk 0:01:24.6]}
28. Bg2 {[%clk 0:01:10.8]} 28... Qc5 {[%clk 0:01:05.8]} 29. Bxd5 {[%clk
0:01:06.4]} 29... Bxd5 {[%clk 0:01:00.4]} 30. Ne4 {[%clk 0:00:54.3]} 30... Qc6
{[%clk 0:00:49.4]} 31. Nc3 {[%clk 0:00:31.6]} 31... Be6 {[%clk 0:00:35.8]} 32.
Qb4+ {[%clk 0:00:30.6]} 32... Ke8 {[%clk 0:00:32]} 33. a4 {[%clk 0:00:28.6]}
33... Bc4 {[%clk 0:00:27.5]} 34. axb5 {[%clk 0:00:26.8]} 34... axb5 {[%clk
0:00:26.3]} 35. Rd6 {[%clk 0:00:19.7]} 35... Qh1+ {[%clk 0:00:23.1]} 36. Nd1
{[%clk 0:00:19.1]} 36... Rxh4 {[%clk 0:00:21.6]} 37. Qa5 {[%clk 0:00:17.5]} 1-0